Workbook

Sheet Amortisationsdauer
AA3: Jahr | AB3: Monat | AC3: Tag | AD3: Jahr | AE3: Monat | AF3: Tag
AA4: =+YEAR(#REF!) ->  | AB4: =+MONTH(#REF!) ->  | AC4: =+DAY(#REF!) ->  | AD4: =+AA4-1 ->  | AE4: =+AB4 ->  | AF4: =+AC4 -> 
E6: Ermittlung der Amortisationsdauer | AA6: Umsätze
F8: Eingabe | J8: Ergebnisse | O8: Hinweise und Notizen
G10: Startjahr | H10: 2018 | J10: Amortisation, statisch (Jahre) | M10: =IF(ISERROR(H13/(SUM(Z27:AS27)/H11)),"",H13/(SUM(Z27:AS27)/H11)) -> 6.93905667 | O10: Dieses Feld kann für Notizen genutzt werden.
G11: Nutzungsdauer (Jahre) | H11: 15 | J11: ="Amortisation, " & H12*100 & "% (Jahre)" -> Amortisation, 5% (Jahre) | M11: =IF(ISERROR(NPER(H12,PMT(H12,H11,-M12-H13),-H13)),"",NPER(H12,PMT(H12,H11,-M12-H13),-H13)) -> 8.931575724
G12: Zinssatz | H12: 0.05 | J12: Barwert | M12: =IF(AB13=0,"",IF(ISERROR(AB13),"",AB13)) -> 938452.6457
G13: Investition | H13: 2000000 | J13: Barwert abgezinst auf | M13: =IF(H10="","",IF(ISERROR("01.01." &H10),"","01.01." &H10)) -> 01.01.2018 | Y13: Barwert | AB13: =IF(ISERROR(SUM(I29:R29,I40:R40)),"",SUM(I29:R29,I40:R40)) -> 938452.6457
G14: Jährlicher Rückfluss (Einsparung) | H14: 250000 | J14: interne Verzinsung | M14: =IF(ISERROR(IRR(Y27:AS27,0.1)),"",IRR(Y27:AS27,0.1)) -> 0.1096915887
G15: Steigerungsrate Rückfluss | H15: 0.02
F18: Detailübersicht
Y20: 2015 | Z20: =1+Y20 -> 2016 | AA20: =1+Z20 -> 2017 | AB20: 2018 | AC20: 2019 | AD20: 2020 | AE20: 2021 | AF20: 2022 | AG20: 2023 | AH20: 2024 | AI20: 2025 | AJ20: 2026 | AK20: 2027 | AL20: 2028 | AM20: 2029 | AN20: 2030 | AO20: 2031 | AP20: 2032 | AQ20: 2033 | AR20: 2034
G21: Zeitpunkt | H21: =+DATE(H10,1,1) -> 2018-01-01 | I21: 31. Dez. | J21: 31. Dez. | K21: 31. Dez. | L21: 31. Dez. | M21: 31. Dez. | N21: 31. Dez. | O21: 31. Dez. | P21: 31. Dez. | Q21: 31. Dez. | R21: 31. Dez. | Y21: 1 | Z21: =1+Y21 -> 2 | AA21: =1+Z21 -> 3 | AB21: 4 | AC21: 5 | AD21: 6 | AE21: 7 | AF21: 8 | AG21: 9 | AH21: 10 | AI21: 11 | AJ21: 12 | AK21: 13 | AL21: 14 | AM21: 15 | AN21: 16 | AO21: 17 | AP21: 18 | AQ21: 19 | AR21: 20
H22: =H10 -> 2018 | I22: =H22 -> 2018 | J22: =I22+1 -> 2019 | K22: 2020 | L22: 2021 | M22: 2022 | N22: 2023 | O22: 2024 | P22: 2025 | Q22: 2026 | R22: 2027
G23: Kredit für Investition | H23: =IF(H13="","",H13) -> 2000000
G24: Rückfluss | H24: =IF(H27="","",H27) -> -2000000 | I24: =IF(ISERROR(IF(I22<=$H$22+$H$11-1,$H$14*(1+$H$15)^(I22-$H$22),0)),"",IF(I22<=$H$22+$H$11-1,$H$14*(1+$H$15)^(I22-$H$22),0)) -> 250000 | J24: =IF(ISERROR(IF(J22<=$H$22+$H$11-1,$H$14*(1+$H$15)^(J22-$H$22),0)),"",IF(J22<=$H$22+$H$11-1,$H$14*(1+$H$15)^(J22-$H$22),0)) -> 255000 | K24: 260100 | L24: 265302 | M24: 270608.04 | N24: 276020.2008 | O24: 281540.6048 | P24: 287171.4169 | Q24: 292914.8453 | R24: 298773.1422 | Y24: =+H21 -> 2018-01-01 | Z24: =+I21 -> 31. Dez. | AA24: 31. Dez. | AB24: 31. Dez. | AC24: 31. Dez. | AD24: 31. Dez. | AE24: 31. Dez. | AF24: 31. Dez. | AG24: 31. Dez. | AH24: 31. Dez. | AI24: 31. Dez. | AJ24: =+I32 -> 31. Dez. | AK24: 31. Dez. | AL24: 31. Dez. | AM24: 31. Dez. | AN24: 31. Dez. | AO24: 31. Dez. | AP24: 31. Dez. | AQ24: 31. Dez. | AR24: 31. Dez. | AS24: 31. Dez.
G25: Zins | I25: =IF(ISERROR(IF(AND(H27<0,I24>0),H27*$H$12,0)),"",IF(AND(H27<0,I24>0),H27*$H$12,0)) -> -100000 | J25: =IF(ISERROR(IF(AND(I27<0,J24>0),I27*$H$12,0)),"",IF(AND(I27<0,J24>0),I27*$H$12,0)) -> -92500 | K25: -84375 | L25: -75588.75 | M25: -66103.0875 | N25: -55877.83988 | O25: -44870.72183 | P25: -33037.22768 | Q25: -20330.51822 | R25: -6701.301866 | Y25: =+H22 -> 2018 | Z25: 2018 | AA25: 2019 | AB25: 2020 | AC25: 2021 | AD25: 2022 | AE25: 2023 | AF25: 2024 | AG25: 2025 | AH25: 2026 | AI25: 2027 | AJ25: 2028 | AK25: 2029 | AL25: 2030 | AM25: 2031 | AN25: 2032 | AO25: 2033 | AP25: 2034 | AQ25: 2035 | AR25: 2036 | AS25: 2037
G26: Tilgung | I26: =IF(ISERROR(IF(H27<0,IF(H27<-I24-I25,-I24-I25,H27),0)),"",IF(H27<0,IF(H27<-I24-I25,-I24-I25,H27),0)) -> -150000 | J26: =IF(ISERROR(IF(I27<0,IF(I27<-J24-J25,-J24-J25,I27),0)),"",IF(I27<0,IF(I27<-J24-J25,-J24-J25,I27),0)) -> -162500 | K26: -175725 | L26: -189713.25 | M26: -204504.9525 | N26: -220142.3609 | O26: -236669.883 | P26: -254134.1892 | Q26: -272584.327 | R26: -134026.0373
G27: Restschuld | H27: =IF(H23="","",-H23) -> -2000000 | I27: =IF(ISERROR(IF(AND(H27-I26<0,I24>0),H27-I26,0)),"",IF(AND(H27-I26<0,I24>0),H27-I26,0)) -> -1850000 | J27: =IF(ISERROR(IF(AND(I27-J26<0,J24>0),I27-J26,0)),"",IF(AND(I27-J26<0,J24>0),I27-J26,0)) -> -1687500 | K27: -1511775 | L27: -1322061.75 | M27: -1117556.798 | N27: -897414.4366 | O27: -660744.5536 | P27: -406610.3644 | Q27: -134026.0373 | R27: 0 | Y27: =+H24 -> -2000000 | Z27: =+I24 -> 250000 | AA27: 255000 | AB27: 260100 | AC27: 265302 | AD27: 270608.04 | AE27: 276020.2008 | AF27: 281540.6048 | AG27: 287171.4169 | AH27: 292914.8453 | AI27: 298773.1422 | AJ27: =+I35 -> 304748.605 | AK27: 310843.5771 | AL27: 317060.4486 | AM27: 323401.6576 | AN27: 329869.6908 | AO27: 0 | AP27: 0 | AQ27: 0 | AR27: 0 | AS27: 0
G28: Überschuss | I28: =IF(ISERROR(I24+I25+I26),"",I24+I25+I26) -> 0 | J28: =IF(ISERROR(J24+J25+J26),"",J24+J25+J26) -> 0 | K28: 0 | L28: 0 | M28: 0 | N28: 0 | O28: 0 | P28: 0 | Q28: 0 | R28: 158045.803 | Y28: 0 | Z28: -100000 | AA28: -92500 | AB28: -84375 | AC28: -75588.75 | AD28: -66103.0875 | AE28: -55877.83988 | AF28: -44870.72183 | AG28: -33037.22768 | AH28: -20330.51822 | AI28: -6701.301866 | AJ28: 0 | AK28: 0 | AL28: 0 | AM28: 0 | AN28: 0 | AO28: 0 | AP28: 0 | AQ28: 0 | AR28: 0 | AS28: 0
G29: Barwert | I29: =IF(ISERROR(IF(I28>0,I28/(1+$H$12)^(I22-$H$22+1),IF(AND(I27<0,J24=0),I27/(1+$H$12)^(I22-$H$22+1),0))),"",IF(I28>0,I28/(1+$H$12)^(I22-$H$22+1),IF(AND(I27<0,J24=0),I27/(1+$H$12)^(I22-$H$22+1),0))) -> 0 | J29: =IF(ISERROR(IF(J28>0,J28/(1+$H$12)^(J22-$H$22+1),IF(AND(J27<0,K24=0),J27/(1+$H$12)^(J22-$H$22+1),0))),"",IF(J28>0,J28/(1+$H$12)^(J22-$H$22+1),IF(AND(J27<0,K24=0),J27/(1+$H$12)^(J22-$H$22+1),0))) -> 0 | K29: 0 | L29: 0 | M29: 0 | N29: 0 | O29: 0 | P29: 0 | Q29: 0 | R29: 97026.41311 | Y29: 0 | Z29: -150000 | AA29: -162500 | AB29: -175725 | AC29: -189713.25 | AD29: -204504.9525 | AE29: -220142.3609 | AF29: -236669.883 | AG29: -254134.1892 | AH29: -272584.327 | AI29: -134026.0373 | AJ29: 0 | AK29: 0 | AL29: 0 | AM29: 0 | AN29: 0 | AO29: 0 | AP29: 0 | AQ29: 0 | AR29: 0 | AS29: 0
Y30: -2000000 | Z30: -1850000 | AA30: -1687500 | AB30: -1511775 | AC30: -1322061.75 | AD30: -1117556.798 | AE30: -897414.4366 | AF30: -660744.5536 | AG30: -406610.3644 | AH30: -134026.0373 | AI30: 0 | AJ30: 0 | AK30: 0 | AL30: 0 | AM30: 0 | AN30: 0 | AO30: 0 | AP30: 0 | AQ30: 0 | AR30: 0 | AS30: 0
Y31: 0 | Z31: 0 | AA31: 0 | AB31: 0 | AC31: 0 | AD31: 0 | AE31: 0 | AF31: 0 | AG31: 0 | AH31: 0 | AI31: 158045.803 | AJ31: 304748.605 | AK31: 310843.5771 | AL31: 317060.4486 | AM31: 323401.6576 | AN31: 329869.6908 | AO31: 0 | AP31: 0 | AQ31: 0 | AR31: 0 | AS31: 0
G32: Zeitpunkt | I32: 31. Dez. | J32: 31. Dez. | K32: 31. Dez. | L32: 31. Dez. | M32: 31. Dez. | N32: 31. Dez. | O32: 31. Dez. | P32: 31. Dez. | Q32: 31. Dez. | R32: 31. Dez. | Y32: 0 | Z32: 0 | AA32: 0 | AB32: 0 | AC32: 0 | AD32: 0 | AE32: 0 | AF32: 0 | AG32: 0 | AH32: 0 | AI32: 97026.41311 | AJ32: 178180.1977 | AK32: 173089.3349 | AL32: 168143.9254 | AM32: 163339.8132 | AN32: 158672.9614 | AO32: 0 | AP32: 0 | AQ32: 0 | AR32: 0 | AS32: 0
I33: =R22+1 -> 2028 | J33: =I33+1 -> 2029 | K33: 2030 | L33: 2031 | M33: 2032 | N33: 2033 | O33: 2034 | P33: 2035 | Q33: 2036 | R33: 2037
G35: Rückfluss | I35: =IF(ISERROR(IF(I33<=$H$22+$H$11-1,$H$14*(1+$H$15)^(I33-$H$22),0)),"",IF(I33<=$H$22+$H$11-1,$H$14*(1+$H$15)^(I33-$H$22),0)) -> 304748.605 | J35: =IF(ISERROR(IF(J33<=$H$22+$H$11-1,$H$14*(1+$H$15)^(J33-$H$22),0)),"",IF(J33<=$H$22+$H$11-1,$H$14*(1+$H$15)^(J33-$H$22),0)) -> 310843.5771 | K35: =IF(ISERROR(IF(K33<=$H$22+$H$11-1,$H$14*(1+$H$15)^(K33-$H$22),0)),"",IF(K33<=$H$22+$H$11-1,$H$14*(1+$H$15)^(K33-$H$22),0)) -> 317060.4486 | L35: 323401.6576 | M35: 329869.6908 | N35: 0 | O35: 0 | P35: 0 | Q35: 0 | R35: 0
G36: Zins | I36: =IF(ISERROR(IF(AND(R27<0,I35>0),R27*$H$12,0)),"",IF(AND(R27<0,I35>0),R27*$H$12,0)) -> 0 | J36: =IF(ISERROR(IF(AND(I38<0,J35>0),I38*$H$12,0)),"",IF(AND(I38<0,J35>0),I38*$H$12,0)) -> 0 | K36: =IF(ISERROR(IF(AND(J38<0,K35>0),J38*$H$12,0)),"",IF(AND(J38<0,K35>0),J38*$H$12,0)) -> 0 | L36: 0 | M36: 0 | N36: 0 | O36: 0 | P36: 0 | Q36: 0 | R36: 0
G37: Tilgung | I37: =IF(ISERROR(IF(R27<0,IF(R27<-I35-I36,-I35-I36,R27),0)),"",IF(R27<0,IF(R27<-I35-I36,-I35-I36,R27),0)) -> 0 | J37: =IF(ISERROR(IF(I38<0,IF(I38<-J35-J36,-J35-J36,I38),0)),"",IF(I38<0,IF(I38<-J35-J36,-J35-J36,I38),0)) -> 0 | K37: =IF(ISERROR(IF(J38<0,IF(J38<-K35-K36,-K35-K36,J38),0)),"",IF(J38<0,IF(J38<-K35-K36,-K35-K36,J38),0)) -> 0 | L37: 0 | M37: 0 | N37: 0 | O37: 0 | P37: 0 | Q37: 0 | R37: 0
G38: Restschuld | I38: =IF(ISERROR(IF(AND(R27-I37<0,I35>0),R27-I37,0)),"",IF(AND(R27-I37<0,I35>0),R27-I37,0)) -> 0 | J38: =IF(ISERROR(IF(AND(I38-J37<0,J35>0),I38-J37,0)),"",IF(AND(I38-J37<0,J35>0),I38-J37,0)) -> 0 | K38: =IF(ISERROR(IF(AND(J38-K37<0,K35>0),J38-K37,0)),"",IF(AND(J38-K37<0,K35>0),J38-K37,0)) -> 0 | L38: 0 | M38: 0 | N38: 0 | O38: 0 | P38: 0 | Q38: 0 | R38: 0
G39: Überschuss | I39: =IF(ISERROR(I35+I36+I37),"",I35+I36+I37) -> 304748.605 | J39: =IF(ISERROR(J35+J36+J37),"",J35+J36+J37) -> 310843.5771 | K39: =IF(ISERROR(K35+K36+K37),"",K35+K36+K37) -> 317060.4486 | L39: 323401.6576 | M39: 329869.6908 | N39: 0 | O39: 0 | P39: 0 | Q39: 0 | R39: 0
G40: Barwert | I40: =IF(ISERROR(IF(I39>0,I39/(1+$H$12)^(I33-$H$22+1),IF(AND(I38<0,J35=0),I38/(1+$H$12)^(I33-$H$22+1),0))),"",IF(I39>0,I39/(1+$H$12)^(I33-$H$22+1),IF(AND(I38<0,J35=0),I38/(1+$H$12)^(I33-$H$22+1),0))) -> 178180.1977 | J40: =IF(ISERROR(IF(J39>0,J39/(1+$H$12)^(J33-$H$22+1),IF(AND(J38<0,K35=0),J38/(1+$H$12)^(J33-$H$22+1),0))),"",IF(J39>0,J39/(1+$H$12)^(J33-$H$22+1),IF(AND(J38<0,K35=0),J38/(1+$H$12)^(J33-$H$22+1),0))) -> 173089.3349 | K40: =IF(ISERROR(IF(K39>0,K39/(1+$H$12)^(K33-$H$22+1),IF(AND(K38<0,L35=0),K38/(1+$H$12)^(K33-$H$22+1),0))),"",IF(K39>0,K39/(1+$H$12)^(K33-$H$22+1),IF(AND(K38<0,L35=0),K38/(1+$H$12)^(K33-$H$22+1),0))) -> 168143.9254 | L40: 163339.8132 | M40: 158672.9614 | N40: 0 | O40: 0 | P40: 0 | Q40: 0 | R40: 0
